Cogmind - Beta 16.1 @@@ ROGUE MODE // 2026.02.16 @ 19:11:38 Player: Megaknight51 Result: Destroyed by as-83357 with Assembled Blade Performance ------------- Evolutions (0) 0 Regions Visited (2) 400 Robots Destroyed (29) 145 Value Destroyed (614) 614 Prototype IDs (5) 100 Alien Tech Used (0) 0 Bonus (0) 0 TOTAL SCORE: 1259 Bonus ------- None Cogmind --------- Core Integrity 0/250 Matter 5/300 Energy 100/100 System Corruption 0% Temperature Cool (0) Movement Rolling (130) Ox2 Location -10/Mines Parts ------- > --- POWER (1) -------- (None) > --- PROPULSION (2) --- Compact Wheel > --- UTILITY (2) ------ High-capacity Storage Unit > --- WEAPON (2) ------- Mini Grenade Launcher Mini Grenade Launcher > --- INVENTORY (20) --- Light Nuclear Core Light Treads Light Treads Wheel Wheel Wheel Compact Wheel Improved Heat Sink Improved Heat Sink High-capacity Battery (250) Machine Analyzer Improved Terrain Scanner Hardened Light Armor Plating Hardened Light Armor Plating Hardened Light Armor Plating Particle Gun Mini Grenade Launcher Mini Grenade Launcher Mining Laser Peak State ------------ > --- POWER ------------ Ion Engine > --- PROPULSION ------- Wheel Compact Wheel > --- UTILITY ---------- High-capacity Storage Unit Hardened Light Armor Plating > --- WEAPON ----------- Particle Gun Mini Grenade Launcher > --- INVENTORY -------- Light Nuclear Core Light Treads Light Treads Wheel Wheel Wheel Compact Wheel Improved Heat Sink Improved Heat Sink High-capacity Battery Machine Analyzer Improved Terrain Scanner Hardened Light Armor Plating Mini Grenade Launcher Mini Grenade Launcher Mini Grenade Launcher [Rating: 13] Favorites ----------- Power Ion Engine Engine Ion Engine Propulsion Wheel Wheel Wheel Utility Small Storage Unit Device Seismic Detector Storage Small Storage Unit Protection Hardened Light Armor Plating Weapon Mini Grenade Launcher Energy Gun Particle Gun Ballistic Gun Assault Rifle Launcher Mini Grenade Launcher Special Weapon Mining Laser Build | -11 -10 -10 ------- Run | Yrd Mat Min Slots Evolved . | . . . Power . | . . . Propulsion . | . . . Utility . | . . . Weapon . | . . . Parts Attached 18 | 7 9 2 Power 2 | 1 1 . Engine 2 | 1 1 . Core . | . . . Reactor . | . . . Propulsion 5 | 2 3 . Treads . | . . . Leg . | . . . Wheel 5 | 2 3 . Hover . | . . . Flight . | . . . Utility 4 | 2 2 . Device 1 | 1 . . Storage 2 | 1 1 . Processor . | . . . Hackware . | . . . Protection 1 | . 1 . Artifact . | . . . Weapon 7 | 2 3 2 Energy Gun 2 | 1 1 . Energy Cannon . | . . . Ballistic Gun 1 | 1 . . Ballistic Cannon . | . . . Launcher 3 | . 2 1 Special Weapon 1 | . . 1 Impact Weapon . | . . . Slashing Weapon . | . . . Piercing Weapon . | . . . Special Melee Weapon . | . . . Unidentified Prototypes . | . . . Parts Lost 6 | . 2 4 Power 1 | . . 1 Propulsion 2 | . 1 1 Utility 2 | . 1 1 Weapon 1 | . . 1 Highest Loss Streak 3 | . 1 3 To Critical Strikes . | . . . Average Backups 10 | 3 9 18 Power 1 | . 1 1 Propulsion 3 | 1 2 6 Utility 4 | . 4 8 Weapon 1 | . 1 3 Tool/Special . | . . . Unused Backups 19 | . 3 16 Power 1 | . . 1 Propulsion 6 | . 1 5 Utility 9 | . 1 8 Weapon 3 | . 1 2 Tool/Special . | . . . Average Slot Usage (%) 97 | . 97 97 Engine 13 | . 14 12 Wheel 26 | . 25 27 Device 5 | . 7 . Storage 14 | . 14 14 Protection 8 | . 6 13 Energy Gun 10 | . 14 . Ballistic Gun 5 | . 7 . Launcher 11 | . 6 26 Peak Build Rating 13 | 7 13 13 Average Rating 9 | 6 9 12 On Entrance 6 | . 7 13 Avg Prop Armor Cover (%) . | . . . Naked Turns . | . . . Heaviest Build 54 | 14 54 54 Greatest Support 26 | 20 26 26 Greatest Overweight (x) 3 | . 3 2 Average Overweight (x) . | . . 1 Largest Inventory Capacity 20 | 8 20 20 Average Capacity 12 | 7 11 20 Most Carried 19 | 6 18 19 Average Carried 10 | 4 9 18 Final Capacity 20 | 8 20 20 Final Carried 19 | 6 18 19 Class Distribution -------------------- 100% | Mutant Dominant Class ---------------- Mutant | -10/Materials Mutant | -10/Mines Resources | -11 -10 -10 ----------- Run | Yrd Mat Min Matter Collected 531 | 342 189 . Remotely . | . . . Salvage Created 860 | 328 463 69 Parts 61 | 29 30 2 Haulers Intercepted . | . . . Recyclers Shooed . | . . . Parts Field Recycled . | . . . Retrieved Matter . | . . . Parts Self-Destructed . | . . . Prevented . | . . . Parts Restored . | . . . Kills | -11 -10 -10 ------- Run | Yrd Mat Min Combat Hostiles Destroyed 26 | . 13 13 Guns 7 | . 7 . AOE 19 | . 6 13 Classes Destroyed 7 | 3 3 1 Worker 2 | 2 . . Tunneler 9 | 9 . . Recycler 2 | 1 1 . Mechanic 1 | . 1 . Swarmer 2 | . 2 . Grunt 13 | . 11 2 Assembled 11 | . . 11 Best Kill Streak 11 | 5 3 11 Combat Bots Only 11 | . 2 11 Max Kills in Single Turn 4 | 1 2 4 Gunslinging . | . . . Exploded 4 | . 1 4 Melee . | . . . Uniques/NPCs Destroyed . | . . . Combat | -11 -10 -10 -------- Run | Yrd Mat Min Hostile Shots Fired 80 | . 53 27 Missed 25 | . 16 9 Hits 55 | . 37 18 Melee 6 | . . 6 Projectile 49 | . 37 12 Damage Taken 968 | . 520 448 Core 260 | . 93 167 Absorbed by Shields . | . . . Core Remaining (%) 100 | 100 . . Volleys Fired 80 | 24 44 12 Largest 2 | 2 2 2 Hottest 100 | 60 95 100 Shots Fired 143 | 48 76 19 Gun 108 | 48 59 1 Cannon . | . . . Launcher 31 | . 17 14 Special 4 | . . 4 Kinetic 42 | 24 18 . Thermal 70 | 24 41 5 Explosive 31 | . 17 14 Electromagnetic . | . . . Robot Hit Streak 15 | 5 15 6 Robot Miss Streak 3 | 2 3 1 Penetration Max . | . . . Secondary Targets 2 | . 2 . Max Gunslinging Chain 1 | . 1 . Shots Hit Robots 82 | 31 43 8 Core Hits 56 | 13 24 19 Critical Kills 1 | 1 . . Critical Parts Destroyed . | . . . Critical Strikes 1 | 1 . . Destroy 1 | 1 . . Melee Attacks . | . . . Impact . | . . . Slashing . | . . . Piercing . | . . . Sneak Attacks . | . . . Combat Hostiles . | . . . Follow-up Attacks . | . . . Damage Inflicted 2794 | 378 1424 992 Guns 944 | 378 566 . Cannons . | . . . Explosions 1850 | . 858 992 Melee . | . . . Ramming . | . . . Kinetic 310 | 166 144 . Thermal 634 | 212 422 . Explosive 1850 | . 858 992 Electromagnetic . | . . . Impact . | . . . Slashing . | . . . Piercing . | . . . Highest Corruption . | . . . Average Corruption . | . . . Corruption Purged . | . . . Corruption Blocked . | . . . Overload Shots . | . . . Overflow Damage 98 | . 4 94 Projectiles . | . . . Explosions 98 | . 4 94 Melee . | . . . Knockbacks . | . . . Impact . | . . . Kinetic . | . . . Secondary . | . . . Self-Inflicted Damage 165 | . 61 104 Shots 8 | . 3 5 Rammed . | . . . Targets Rammed . | . . . Kicked . | . . . Crushed . | . . . Highest Temperature 240 | . 240 85 Average Temperature 82 | . 96 38 Received Heat Transfer 320 | . 252 68 Effects 2 | . 2 . Interference 2 | . 2 . Siege Activations . | . . . Martial Activations . | . . . Shielding Activations . | . . . Robots Disrupted . | . . . Combat Hostiles . | . . . Robots Corrupted . | . . . Combat Hostiles . | . . . Parts Fried . | . . . Impact Corruptions . | . . . Robots Melted . | . . . Combat Hostiles . | . . . Parts Melted . | . . . Heat Transferred 1465 | 475 990 . Parts Sabotaged . | . . . Parts Stolen . | . . . Parts Stripped . | . . . Power Chain Reactions . | . . . Alert | -11 -10 -10 ------- Run | Yrd Mat Min Maximum Alert Level 1 | . 1 . Low Security (%) 82 | 100 72 100 Level 1 17 | . 27 . Level 2 . | . . . Level 3 . | . . . Level 4 . | . . . Level 5 . | . . . High Security . | . . . Max Security . | . . . Peak Influence 261 | 15 261 141 Initial 81 | . 3 81 Average 82 | 2 105 76 Influence Increases 761 | 60 567 134 Destroy 0b10 Robot/C 300 | . 260 40 Destroy 0b10 Robot/NC 70 | 60 10 . Destroy Leader 70 | . 60 10 Successful Hack 36 | . 36 . Select Force Hacks 60 | . 60 . Disable Machine 15 | . 15 . Destroy Structure 150 | . 96 54 Partial Spotted 15 | . 15 . Lose Combat Pursuer 45 | . 15 30 Influence Decreases 761 | 55 362 344 Entered New Map 131 | . 2 129 Time Decay 555 | 55 340 160 Lost Part 55 | . 20 35 Lost Ally 20 | . . 20 Squads Dispatched 3 | . 3 . Investigation 3 | . 3 . Extermination . | . . . Reinforcement . | . . . Assault . | . . . Garrison . | . . . Intercept . | . . . Searches Triggered . | . . . Construction Impeded . | . . . Haulers Reinforced . | . . . Active Scanning Responses . | . . . Cargo Convoy Interrupts . | . . . Stealth | -11 -10 -10 --------- Run | Yrd Mat Min Distress Signals . | . . . Communications Jammed . | . . . Distress Signals . | . . . Times Spotted 42 | . 22 20 Peak Tracking Total 15 | . 5 15 Tactical Retreats 4 | . 1 3 Traps | -11 -10 -10 ------- Run | Yrd Mat Min Traps Triggered 2 | . 2 . Indirectly . | . . . Trap Hack Attempts . | . . . Triggered . | . . . Disarmed . | . . . Reprogrammed . | . . . Reused . | . . . Traps Extracted . | . . . Installed . | . . . Triggered . | . . . Machines | -11 -10 -10 ---------- Run | Yrd Mat Min Machines Disabled 1 | . 1 . Max in Single Turn 1 | . 1 . Machines Repaired . | . . . Machines Dismantled . | . . . Machines Sabotaged . | . . . Overloaded Fab Kills . | . . . Hacking | -11 -10 -10 --------- Run | Yrd Mat Min Machines Accessed 9 | . 9 . Terminals 7 | . 7 . Fabricators . | . . . Repair Stations . | . . . Recycling Units 2 | . 2 . Scanalyzers . | . . . Garrison Access . | . . . Total Hacks 25 | . 25 . Successful 14 | . 14 . Failed 11 | . 11 . Catastrophic 3 | . 3 . Database Lockouts . | . . . Manual 20 | . 20 . Terminals 23 | . 23 . Fabricators . | . . . Repair Stations . | . . . Recycling Units 2 | . 2 . Scanalyzers . | . . . Garrison Access . | . . . Terminal Hacks 6 | . 6 . Robot Analysis 1 | . 1 . Prototype ID Bank 3 | . 3 . Alert Level 1 | . 1 . Dispatch Records 1 | . 1 . Fabricator Hacks . | . . . Repair Station Hacks . | . . . Recycling Unit Hacks . | . . . Scanalyzer . | . . . Garrison Access Hacks . | . . . Unauthorized Hacks 8 | . 8 . Terminals 6 | . 6 . Botnet 6 | . 6 . Fabricators . | . . . Repair Stations . | . . . Recycling Units 2 | . 2 . Tunnel 2 | . 2 . Scanalyzers . | . . . Garrison Access . | . . . Data Cores Recovered . | . . . Used . | . . . Hacking Detections 7 | . 7 . Full Trace Events 1 | . 1 . Feedback Events . | . . . Feedback Blocked . | . . . Robot Schematics Acquired . | . . . Robots Built . | . . . Authchips . | . . . Time . | . . . Total Robot Build Rating . | . . . Part Schematics Acquired . | . . . Parts Built . | . . . Authchips . | . . . Time . | . . . Total Part Build Rating . | . . . Part Studies Acquired . | . . . Parts Repaired . | . . . Time . | . . . Parts Recycled . | . . . Recycled Matter . | . . . Retrieved Matter . | . . . Retrieved Components . | . . . Parts Scanalyzed . | . . . Part Schematics Acquired . | . . . Parts Damaged . | . . . Bothacking | -11 -10 -10 ------------ Run | Yrd Mat Min Used RIF Installer . | . . . Robots Hacked . | . . . Non-combat . | . . . Combat . | . . . Robot Hacks Applied . | . . . Relay Couplers Released . | . . . Fabnet Peak Effective % . | . . . Robots Rewired . | . . . Allies Hacked . | . . . Hacks Repelled . | . . . Allies | -11 -10 -10 -------- Run | Yrd Mat Min Total Allies 1 | . . 1 Largest Group 1 | . . 1 Highest-Rated Group 31 | . . 31 Highest-Rated Ally 31 | . . 31 Total Orders . | . . . Ally Attacks 5 | . . 5 Total Damage 21 | . . 21 Kills . | . . . Allies Corrupted . | . . . Allies Melted . | . . . Intel | -11 -10 -10 ------- Run | Yrd Mat Min Active Infowar (turns) 615 | 159 456 . Seismic 615 | 159 456 . Robot Analysis Total 1 | . 1 . Derelict Logs Recovered 1 | . . 1 Drone Launches . | . . . Drone Recoveries . | . . . Exploration | -11 -10 -10 ------------- Run | Yrd Mat Min Turns Passed 1540 | 251 959 330 Spaces Moved 1105 | 172 665 268 Core 1 | 1 . . Treads . | . . . Legs . | . . . Wheels 1104 | 171 665 268 Hover . | . . . Flight . | . . . Fastest Speed 50 | 50 80 105 Average Speed 96 | 79 96 106 Slowest Speed 145 | 80 145 130 Overloaded Moves . | . . . Propulsion Burnouts . | . . . Robots Hopped . | . . . Potential Cave-ins 2 | . . 2 Cave-ins Triggered . | . . . Exploration Rate (%) 43 | 4 73 52 Regions Visited 2 Branch Regions 1 Pre-discovered Areas 3 | . 2 1 Known Exits Taken . | . . . Unknown Exits Taken 2 | 1 1 . Scrap Searched . | . . . Spaces Dug 46 | . 20 26 Terrain Destroyed 205 | . 107 98 Melee . | . . . Projectile 4 | . . 4 AOE 201 | . 107 94 Terrain Rammed . | . . . Walls Destroyed . | . . . Machines Disabled . | . . . Actions | -11 -10 -10 --------- Run | Yrd Mat Min Total 1425 | 234 906 285 Wait 185 | 25 160 . Move 1103 | 171 664 268 Hop . | . . . Pick Up 26 | 7 17 2 Fast Attach 10 | 6 4 . Attach 3 | 1 1 1 Detach . | . . . Swap 9 | . 7 2 Drop 9 | . 9 . Fire 80 | 24 44 12 Melee . | . . . Ram . | . . . Kick . | . . . Crush . | . . . Escape Stasis . | . . . Rewire . | . . . Trap . | . . . Miscellaneous . | . . . Route ------- -11/Scrapyard -10/Materials (discovered 4 exits: [*Mat] / [*Min x2] / [*Sub]) -10/Mines History --------- Turn | Location | Event 13 | -11/Scrapyard | Discovered new exit (range 15) 252 | -11/Scrapyard | Entered Materials 304 | -10/Materials | Build established: Mutant 411 | -10/Materials | Discovered new exit (range 16) 669 | -10/Materials | Discovered new exit (range 11) 935 | -10/Materials | Discovered new exit (range 6) 965 | -10/Materials | Discovered new exit (range 15) 1211 | -10/Materials | Entered Mines 1300 | -10/Mines | Learned location of Storage (-9) 1346 | -10/Mines | Assembled infested the area 1367 | -10/Mines | Core integrity fell below 50% 1393 | -10/Mines | Destroyed 11 combat bots 1477 | -10/Mines | Received a Mining Laser from a helpful Derelict 1534 | -10/Mines | Core integrity fell below 20% 1541 | -10/Mines | Destroyed by as-83357 with Assembled Blade Last Messages --------------- 01441_ The unstable cave ceiling collapses. 01443_ K-01 Serf collects debris. 01475_ A derelict emerges from the shadows: "What are you doing alone down here?" 01476_ K-01 Serf collects debris. 01477_ 3D-X0V(g): "And why aren't you carrying a mining laser?! Certainly you don't want THEM to uncover you when the ceiling comes crashing down? Here, take my spare." 01480_ 3D-X0V(g): "You're apparently new around these parts, I'll cover you." 01480_ K-01 Serf collects debris. 01483_ 3D-X0V(g): "Mining lasers are a lot more useful than you might think..." 01483_ Acquired Mining Laser. 01498_ K-01 Serf collects debris. 01506_ K-01 Serf destroyed. 01517_ Ion Engine destroyed. 01523_ Wheel destroyed. 01526_ Destroyed Asb. F-torch. 01531_ Hrd. Light Armor Plating destroyed. Map ----- +----------------------------------------------------+ | ???????????????????????????## ###????????? | | ???????????????????????????# ###??????? | | ????????????????????????##### ##?????? | | ??????????????????????## #### #?????? | | ??????????????????????# #?## ##????# | | ?????????##??????????## #??## ##???# | | ???? ## ######## #??## ##??# | | ????# #?## #### | | ??????# ##?# ## | | ??????## ### ## ### """ | | ???????##?????# # # ## """ | | ??????????????#?# # ## """ | | ????????????????# ## # ?# | | ????????????????? # ##### # | | ??????????????????# ?# ## ## | | ?????????????????## # #?## ######? | | ????????????????## ##?## ####?????? | | ????????????????# a * ##?# #????????? | | ????????????????# =% #?# #????????? | | ????????????????# a #?# #????????? | | ????????????????# ! ### #????????? | | ???????????????## #????????? | | ??????????????## ## #????????? | | ?????????????## ###### #####????????? | | ????????????## a##????####????????????? | | ???????????## @##?????????????????????? | | ???????????# #??????????????????????? | | ???????????# a##?????????????????????? | | ???????????# #?????????????????????? | | ???????????## #?????????????????????? | | ???????????## ##?????????????????????? | | ???????????# ###??????????????????????? | | ???????????## #???????????????????????? | | ???????????# ##???????????????????????? | | ?????????#### #????????????????????????? | | ?????????# ##????????????????????????? | | ?????????# ####?????????????????????????? | | ?????????# #????????????????????????????? | | ?????????# #????????????????????????????? | | ?????????# #????????????????????????????? | | ?????????# #?????????????###????????????? | | ??######## ##???????##### ##???????????? | | ??# ####???## ##??????????? | | ??# """ """ ##### ##?????????? | | ??# """ """ ## # #" #?????????? | | ??# """ """ ##*"# #?????????? | | ??# ##%#### ##?????????? | | ??# """ """ ##=###?# #??????????? | | ??# """ """ ## #??# ##??????????? | | ??# """ """ #### #???# ##???????????? | +----------------------------------------------------+ Best States ------------- Heat Dissipation 25 Energy Generation 10 Energy Capacity 250 Matter Stores 300 Matter Capacity 300 Sight Range 16 Terrain Scan Density 10 Armor Coverage 150 Evasion (%) 44 Item Schematics ----------------- None Robot Schematics ------------------ None Fabricated ------------ Nothing Repaired ---------- Nothing Studied --------- None Alien Tech Used ----------------- None Achievements -------------- None Challenges ------------ None Game ------ Seed RecyclingTachyonSlayer Manual? 0 Play Time 00:13:06 Cumulative 78.8 hours Start 2026.02.16 @ 19:00:44 End 2026.02.16 @ 19:11:38 Sessions 1 Manual Loads 0 Difficulty Rogue Special Mode None Game No. 167 Rogue 167 Adventurer 0 Explorer 0 Win Type - Total 1 Types 1/0/0/0/0/0/0/0/0/0 Lore% 49 Gallery% 37 Achievement% 36 Wizard Run 0 Options --------- Layout 0 ASCII 0 Keyboard 1 Movement Arrows Keybinds 0 Fullscreen 1 Font 18/Smallcaps Map View 76x50 Zoom Use 28% Tactical HUD 1 Map Filters NONE Filters NONE Steam 1 RUN: 3f504a75-3c04-4d47-a7fa-52280b1b2dad